fUST/lending_fUST_20240212
["ID","MTS","AMOUNT","RATE_DAILY","PERIOD"]
[313761544,1707684656679,-4132.24156646,0.00020822,2]
[313761545,1707684656688,-500.0,0.00020822,2]
[313761546,1707684656697,-500.0,0.00020822,2]
[313761547,1707684656706,-4132.24156646,0.00020822,2]
[313761548,1707684656716,-4132.24156646,0.00020822,2]
[313761549,1707684656724,-4132.24156646,0.00020822,2]
[313761550,1707684656733,-4132.24156646,0.00020822,2]
[313761551,1707684656742,-4132.24156646,0.00020822,2]
[313761552,1707684656752,-4132.24156646,0.00020822,2]
[313761553,1707684656761,-4132.24156646,0.00020822,2]
[313761554,1707684656770,-4132.24156646,0.00020822,2]
[313761555,1707684656779,-1785.45395409,0.00020822,2]
[313761556,1707684656791,-2346.78761237,0.00020822,2]
[313761557,1707684656800,-4132.24156646,0.00020822,2]
[313761558,1707684656809,-4132.24156646,0.00020822,2]
[313761559,1707684656818,-4132.24156646,0.00020822,2]
[313761560,1707684656827,-4132.24156646,0.00020822,2]
[313761561,1707684656836,-1211.53854396,0.00020822,2]
[313761562,1707684656850,-2920.7030225,0.00020822,2]
[313761563,1707684656859,-500.0,0.00020822,2]
[313761564,1707684656868,-500.0,0.00020822,2]
[313761565,1707684656877,-644.01687675,0.00020822,2]
[313761566,1707684656886,-46.6808633,0.00020822,2]
[313761567,1707684656907,-453.3191367,0.00020822,2]
[313761568,1707684656917,-500.0,0.00020822,2]
[313761569,1707684656927,-500.0,0.00020822,2]
[313761570,1707684656936,-500.0,0.00020822,2]
[313761571,1707684656946,-500.0,0.00020822,2]
[313761572,1707684656955,-500.0,0.00020822,2]
[313761573,1707684656964,-500.0,0.00020822,2]
[313761574,1707684656973,-116.41562921,0.00020822,2]
[313761700,1707685832345,-590.45600238,0.00018899,2]
[313761703,1707685832355,-586.58764305,0.000189,2]
[313761706,1707685832364,-155.0480649,0.00019786,2]
[313761709,1707685832374,-500.0,0.00019787,2]
[313761712,1707685832383,-500.0,0.00019787,2]
[313761722,1707685832542,-500.0,0.00019787,2]
[313761723,1707685832551,-500.0,0.00019787,2]
[313761724,1707685832560,-581.17,0.00019787,2]
[313761725,1707685832569,-426.08,0.00019787,2]
[313761726,1707685832578,-140.34556324,0.00019787,2]
[313761727,1707685832591,-461.40443676,0.00019787,2]
[313761728,1707685832600,-500.0,0.00019787,2]
[313761729,1707685832608,-500.0,0.00019788,2]
[313761730,1707685832618,-238.63,0.00019788,2]
[313761731,1707685832627,-467.77,0.00019788,2]
[313761732,1707685832636,-500.0,0.00019788,2]
[313761733,1707685832646,-500.0,0.00019788,2]
[313761734,1707685832656,-221.2,0.00019788,2]
[313761735,1707685832665,-500.0,0.00019788,2]
[313761736,1707685832674,-500.0,0.00019788,2]
[313761737,1707685832683,-500.0,0.00019788,2]
[313761738,1707685832693,-500.0,0.00019788,2]
[313761739,1707685832702,-500.0,0.00019788,2]
[313761740,1707685832711,-207.2425739,0.00019788,2]
[313761741,1707685832721,-500.0,0.00019788,2]
[313761742,1707685832730,-500.0,0.00019788,2]
[313761743,1707685832740,-500.0,0.00019788,2]
[313761744,1707685832749,-601.75,0.00019788,2]
[313761745,1707685832759,-500.0,0.00019788,2]
[313761746,1707685832768,-500.71814844,0.00019789,2]
[313761747,1707685832778,-438.68756988,0.00019789,2]
[313761748,1707685832787,-500.0,0.00019789,2]
[313761749,1707685832797,-500.0,0.00019789,2]
[313761750,1707685832806,-500.0,0.00019789,2]
[313761751,1707685832815,-40.01744858,0.00019789,2]
[313761860,1707685841748,-459.98255142,0.00019789,2]
[313761861,1707685841757,-500.0,0.00019789,2]
[313761862,1707685841766,-266.13094774,0.00019789,2]
[313761918,1707685844373,-233.86905226,0.00019789,2]
[313761919,1707685844383,-500.0,0.00019789,2]
[313761920,1707685844392,-512.17,0.00019789,2]
[313761921,1707685844401,-577.33,0.00019789,2]
[313761922,1707685844412,-558.72,0.00019789,2]
[313761923,1707685844421,-350.9178788,0.00019789,2]
[313761924,1707685844431,-342.81827767,0.00019893,2]
[313761925,1707685844440,-601.75,0.00019893,2]
[313761926,1707685844449,-601.75,0.00019893,2]
[313761927,1707685844457,-601.75,0.00019893,2]
[313761928,1707685844466,-601.75,0.00019893,2]
[313761929,1707685844475,-601.75,0.00019893,2]
[313761930,1707685844484,-601.75,0.00019893,2]
[313761931,1707685844493,-601.75,0.00019893,2]
[313761932,1707685844501,-169.80499211,0.00019894,2]
[313761934,1707685844511,-500.0,0.00019984,2]
[313761936,1707685844520,-2862.74,0.00019984,2]
[313761938,1707685844529,-2104.75,0.00019984,2]
[313761939,1707685844539,-500.0,0.00019984,2]
[313761940,1707685844548,-7626.57,0.00019988,2]
[313761941,1707685844556,-500.0,0.00019989,2]
[313761943,1707685844566,-558.72,0.00019989,2]
[313761945,1707685844575,-500.0,0.00019989,2]
[313761946,1707685844593,-500.0,0.00019989,2]
[313761947,1707685844604,-184.12,0.00019989,2]
[313761948,1707685844614,-500.0,0.00019989,2]
[313761949,1707685844624,-500.0,0.00019989,2]
[313761950,1707685844633,-500.0,0.00019989,2]
[313761951,1707685844642,-500.0,0.00019989,2]
[313761952,1707685844652,-500.0,0.00019989,2]
[313761953,1707685844662,-500.0,0.00019989,2]
[313761954,1707685844672,-500.0,0.00019989,2]
[313761955,1707685844682,-500.0,0.00019989,2]
[313761956,1707685844691,-500.0,0.00019989,2]
[313761957,1707685844701,-500.0,0.00019989,2]
[313761958,1707685844711,-500.0,0.00019989,2]
[313761959,1707685844720,-358.09302202,0.00019989,2]
[313761960,1707685844730,-500.0,0.00019989,2]
[313761961,1707685844739,-601.75,0.00019989,2]
[313761962,1707685844749,-500.0,0.00019989,2]
[313761963,1707685844762,-500.0,0.00019989,2]
[313761964,1707685844771,-500.0,0.00019989,2]
[313761965,1707685844780,-1393.67,0.00019989,2]
[313761966,1707685844790,-500.0,0.0001999,2]
[313761967,1707685844799,-500.0,0.0001999,2]
[313761968,1707685844808,-2094.17,0.0001999,2]
[313761969,1707685844818,-500.0,0.0001999,2]
[313761970,1707685844828,-500.0,0.0001999,2]
[313761971,1707685844838,-662.95,0.0001999,2]
[313761972,1707685844848,-500.0,0.0001999,2]
[313761973,1707685844860,-1741.68700077,0.00019991,2]
[313761974,1707685844870,-539.10564384,0.00019991,2]
[313761975,1707685844880,-433.41132184,0.00019991,2]
[313761976,1707685844889,-558.72,0.00019991,2]
[313761977,1707685844898,-601.75,0.00019991,2]
[313761978,1707685844908,-601.75,0.00019991,2]
[313761979,1707685844917,-601.75,0.00019991,2]
[313761980,1707685844926,-601.75,0.00019991,2]
[313761981,1707685844937,-558.72,0.00019992,2]
[313761982,1707685844948,-558.72,0.00019993,2]
[313761983,1707685844958,-601.75,0.00019993,2]
[313761984,1707685844967,-558.72,0.00019994,2]
[313761985,1707685844976,-601.75,0.00019994,2]
[313761986,1707685844986,-601.75,0.00019996,2]
[313761987,1707685844996,-6304.53229004,0.0002,2]
[313761988,1707685845006,-324.25284351,0.0002,2]
[313761989,1707685845017,-2056.5,0.00020051,3]
[313761990,1707685845026,-500.0,0.00020061,2]
[313761991,1707685845036,-500.0,0.00020061,2]
[313761992,1707685845046,-386.0,0.00020061,2]
[313761993,1707685845056,-500.0,0.00020061,2]
[313761994,1707685845065,-581.17,0.00020061,2]
[313761995,1707685845075,-500.0,0.00020061,2]
[313761996,1707685845086,-6051.74,0.00020061,2]
[313761997,1707685845098,-259.39,0.00020061,2]
[313761998,1707685845108,-2143.43,0.00020061,2]
[313761999,1707685845117,-2247.75,0.00020061,2]
[313762000,1707685845127,-666.71,0.00020061,2]
[313762001,1707685845136,-500.0,0.00020061,2]
[313762002,1707685845145,-500.0,0.00020062,2]
[313762003,1707685845155,-515.48,0.00020062,2]
[313762004,1707685845165,-500.0,0.00020062,2]
[313762005,1707685845175,-500.0,0.00020062,2]
[313762006,1707685845184,-271.08,0.00020062,2]
[313762007,1707685845194,-500.0,0.00020062,2]
[313762008,1707685845203,-601.75,0.00020062,2]
[313762009,1707685845212,-500.0,0.00020062,2]
[313762010,1707685845223,-500.0,0.00020063,2]
[313762011,1707685845232,-500.0,0.00020063,2]
[313762012,1707685845242,-500.0,0.00020063,2]
[313762013,1707685845251,-500.0,0.00020063,2]
[313762014,1707685845260,-500.0,0.00020063,2]
[313762015,1707685845270,-512.17,0.00020063,2]
[313762016,1707685845280,-577.33,0.00020063,2]
[313762017,1707685845290,-500.0,0.00020258,2]
[313762018,1707685845299,-2862.74,0.00020258,2]
[313762019,1707685845309,-2104.75,0.00020258,2]
[313762020,1707685845319,-500.0,0.00020258,2]
[313762021,1707685845328,-7626.57,0.00020262,2]
[313762022,1707685845338,-500.0,0.00020263,2]
[313762023,1707685845347,-500.0,0.00020263,2]
[313762024,1707685845356,-500.0,0.00020263,2]
[313762025,1707685845365,-298.32,0.00020263,2]
[313762026,1707685845375,-500.0,0.00020263,2]
[313762027,1707685845384,-379.13219578,0.00020263,2]
[313762028,1707685845393,-500.0,0.00020263,2]
[313762029,1707685845402,-500.0,0.00020263,2]
[313762030,1707685845412,-500.0,0.00020263,2]
[313762031,1707685845421,-500.0,0.00020263,2]
[313762032,1707685845430,-500.0,0.00020263,2]
[313762033,1707685845440,-500.0,0.00020263,2]
[313762034,1707685845449,-500.0,0.00020263,2]
[313762035,1707685845457,-500.0,0.00020263,2]
[313762036,1707685845466,-339.0,0.00020263,2]
[313762037,1707685845475,-1393.67,0.00020263,2]
[313762038,1707685845484,-500.0,0.00020264,2]
[313762039,1707685845494,-2094.17,0.00020264,2]
[313762040,1707685845503,-500.0,0.00020264,2]
[313762041,1707685845513,-500.0,0.00020264,2]
[313762042,1707685845522,-662.95,0.00020264,2]
[313762043,1707685845531,-500.0,0.00020264,2]
[313762044,1707685845541,-558.72,0.00020265,2]
[313762045,1707685845551,-601.75,0.00020265,2]
[313762046,1707685845561,-601.75,0.00020265,2]
[313762047,1707685845570,-601.75,0.00020265,2]
[313762048,1707685845579,-601.75,0.00020265,2]
[313762049,1707685845588,-601.75,0.00020265,2]
[313762050,1707685845598,-601.86906119,0.00020265,2]
[313762051,1707685845607,-558.72,0.00020268,2]
[313762052,1707685845616,-500.0,0.00020334,2]
[313762053,1707685845626,-500.0,0.00020335,2]
[313762054,1707685845635,-500.0,0.00020335,2]
[313762055,1707685845644,-405.84,0.00020335,2]
[313762056,1707685845653,-581.17,0.00020335,2]
[313762057,1707685845663,-6051.74,0.00020335,2]
[313762058,1707685845672,-2143.43,0.00020335,2]
[313762059,1707685845681,-2247.75,0.00020335,2]
[313762060,1707685845691,-666.71,0.00020335,2]
[313762061,1707685845700,-500.0,0.00020335,2]
[313762062,1707685845709,-500.0,0.00020336,2]
[313762063,1707685845718,-500.0,0.00020336,2]
[313762064,1707685845727,-500.0,0.00020336,2]
[313762065,1707685845737,-500.0,0.00020336,2]
[313762066,1707685845746,-500.0,0.00020337,2]
[313762067,1707685845756,-500.0,0.00020337,2]
[313762068,1707685845765,-500.0,0.00020337,2]
[313762069,1707685845774,-500.0,0.00020337,2]
[313762070,1707685845783,-512.17,0.00020337,2]
[313762071,1707685845793,-577.33,0.00020337,2]
[313762072,1707685845802,-558.72,0.00020479,2]
[313762073,1707685845811,-5000.0,0.0002048,2]
[313762074,1707685845821,-474.7037986,0.0002048,2]
[313762075,1707685845833,-22426.26408283,0.0002048,2]
[313762076,1707685845842,-5000.0,0.0002048,2]
[313762078,1707685845852,-478.37850738,0.0002048,2]
[313762079,1707685845861,-500.0,0.00020532,2]
[313762081,1707685845871,-2862.74,0.00020532,2]
[313762082,1707685845880,-2104.75,0.00020532,2]
[313762083,1707685845889,-500.0,0.00020532,2]
[313762084,1707685845899,-7626.57,0.00020536,2]
[313762086,1707685845908,-500.0,0.00020537,2]
[313762087,1707685845917,-500.0,0.00020537,2]
[313762088,1707685845926,-500.0,0.00020537,2]
[313762089,1707685845936,-500.0,0.00020537,2]
[313762090,1707685845946,-500.0,0.00020537,2]
[313762091,1707685845955,-500.0,0.00020537,2]
[313762092,1707685845965,-500.0,0.00020537,2]
[313762094,1707685845975,-500.0,0.00020537,2]
[313762096,1707685845984,-500.0,0.00020537,2]
[313762098,1707685845994,-1393.67,0.00020537,2]
[313762100,1707685846006,-500.0,0.00020538,2]
[313762102,1707685846016,-2094.17,0.00020538,2]
[313762105,1707685846026,-500.0,0.00020538,2]
[313762107,1707685846036,-500.0,0.00020538,2]
[313762109,1707685846046,-662.95,0.00020538,2]
[313762111,1707685846056,-500.0,0.00020538,2]
[313762112,1707685846065,-558.72,0.00020541,2]
[313762113,1707685846074,-500.0,0.00020608,2]
[313762115,1707685846086,-250.0,0.00020608,2]
[313762116,1707685846096,-159.04,0.00020609,2]
[313762117,1707685846105,-500.0,0.00020609,2]
[313762118,1707685846115,-581.17,0.00020609,2]
[313762119,1707685846124,-6051.74,0.00020609,2]
[313762120,1707685846133,-2143.43,0.00020609,2]
[313762121,1707685846143,-2247.75,0.00020609,2]
[313762123,1707685846152,-666.71,0.00020609,2]
[313762125,1707685846162,-500.69180626,0.00020609,2]
[313762127,1707685846172,-500.0,0.0002061,2]
[313762128,1707685846181,-500.0,0.0002061,2]
[313762129,1707685846190,-500.0,0.0002061,2]
[313762130,1707685846200,-500.0,0.0002061,2]
[313762132,1707685846209,-512.17,0.00020611,2]
[313762134,1707685846218,-577.33,0.00020611,2]
[313762136,1707685846228,-558.72,0.00020619,2]
[313762138,1707685846237,-558.72,0.00020719,2]
[313762139,1707685846247,-558.72,0.00020719,2]
[313762140,1707685846256,-558.72,0.00020719,2]
[313762142,1707685846265,-558.72,0.00020719,2]
[313762144,1707685846274,-500.0,0.00020721,2]
[313762145,1707685846284,-29421.22698092,0.00020722,2]
[313762146,1707685846293,-933.41815713,0.00020722,2]
[313762147,1707685846302,-8682.59035338,0.000208,2]
[313762148,1707685846311,-500.0,0.00020806,2]
[313762150,1707685846320,-2862.74,0.00020806,2]
[313762152,1707685846329,-2104.75,0.00020806,2]
[313762153,1707685846339,-500.0,0.00020806,2]
[313762155,1707685846348,-7626.57,0.0002081,2]
[313762157,1707685846357,-500.0,0.00020811,2]
[313762159,1707685846367,-500.0,0.00020811,2]
[313762160,1707685846376,-500.0,0.00020811,2]
[313762162,1707685846385,-500.0,0.00020811,2]
[313762164,1707685846395,-500.0,0.00020811,2]
[313762165,1707685846534,-282.48,0.00020811,2]
[313762166,1707685846544,-235.48,0.00020811,2]
[313762167,1707685846553,-1393.67,0.00020811,2]
[313762168,1707685846562,-500.0,0.00020812,2]
[313762169,1707685846571,-2094.17,0.00020812,2]
[313762170,1707685846580,-500.0,0.00020812,2]
[313762171,1707685846589,-500.0,0.00020812,2]
[313762172,1707685846598,-662.95,0.00020812,2]
[313762173,1707685846608,-500.0,0.00020812,2]
[313762174,1707685846619,-558.72,0.00020813,2]
[313762175,1707685846629,-155.95917552,0.00020819,2]
[313762176,1707685846638,-500.0,0.00020819,2]
[313762177,1707685846647,-1945.89697518,0.0002082,2]
[313762178,1707685846658,-614.11393914,0.0002082,2]
[313762179,1707685846668,-1860.4598172,0.0002082,2]
[313762180,1707685846677,-1961.03902914,0.0002082,2]
[313762181,1707685846686,-2823.1509297,0.0002082,2]
[313762182,1707685846696,-157.85405519,0.00020821,2]
[313762183,1707685846706,-155.28046037,0.00020821,2]
[313762184,1707685846714,-558.72,0.00020821,2]
[313762185,1707685846723,-558.72,0.00020821,2]
[313762186,1707685846732,-558.72,0.00020821,2]
[313762187,1707685846741,-558.72,0.00020821,2]
[313762188,1707685846750,-558.72,0.00020821,2]
[313762189,1707685846759,-558.72,0.00020821,2]
[313762190,1707685846768,-558.72,0.00020821,2]
[313762191,1707685846777,-558.84121779,0.00020821,2]
[313762192,1707685846786,-500.0,0.00020821,2]
[313762193,1707685846795,-500.0,0.00020821,2]
[313762194,1707685846804,-500.0,0.00020822,2]
[313762195,1707685846813,-500.0,0.00020822,2]
[313762196,1707685846823,-286.84534383,0.00020822,2]
[313762197,1707685846832,-500.0,0.00020822,2]
[313762198,1707685846841,-500.0,0.00020822,2]
[313762199,1707685846850,-500.0,0.00020822,2]
[313762200,1707685846859,-500.0,0.00020822,2]
[313762201,1707685846869,-500.0,0.00020822,2]
[313762202,1707685846878,-500.0,0.00020822,2]
[313762203,1707685846887,-500.0,0.00020822,2]
[313762204,1707685846898,-500.0,0.00020822,2]
[313762205,1707685846906,-500.0,0.00020822,2]
[313762206,1707685846922,-500.0,0.00020822,2]
[313762207,1707685846939,-500.0,0.00020822,2]
[313762208,1707685846950,-378.74147423,0.00020822,2]
[313762209,1707685846959,-500.0,0.00020822,2]
[313762210,1707685846969,-500.0,0.00020822,2]
[313762211,1707685846978,-500.0,0.00020822,2]
[313762212,1707685846987,-500.0,0.00020822,2]
[313762213,1707685846996,-500.0,0.00020822,2]
[313762214,1707685847005,-500.0,0.00020822,2]
[313762215,1707685847016,-500.0,0.00020822,2]
[313762216,1707685847025,-326.00977132,0.00020822,2]
[313762217,1707685847035,-500.0,0.00020822,2]
[313762218,1707685847044,-500.0,0.00020822,2]
[313762219,1707685847053,-500.0,0.00020822,2]
[313762220,1707685847064,-500.0,0.00020822,2]
[313762221,1707685847073,-500.0,0.00020822,2]
[313762222,1707685847082,-616.81727591,0.00020822,2]
[313762223,1707685847092,-571.55743075,0.00020822,2]
[313762224,1707685847102,-500.0,0.00020822,2]
[313762225,1707685847112,-500.0,0.00020822,2]
[313762226,1707685847121,-500.0,0.00020822,2]
[313762227,1707685847130,-213.97893588,0.00020822,2]
[313762228,1707685847139,-348.67155631,0.00020822,2]
[313762229,1707685847148,-500.0,0.00020822,2]
[313762230,1707685847158,-490.63496214,0.00020822,2]
[313762231,1707685847170,-500.0,0.00020822,2]
[313762232,1707685847179,-500.0,0.00020822,2]
[313762233,1707685847188,-500.0,0.00020822,2]
[313762234,1707685847197,-500.0,0.00020822,2]
[313762235,1707685847210,-500.0,0.00020822,2]
[313762236,1707685847228,-500.0,0.00020822,2]
[313762237,1707685847237,-500.0,0.00020822,2]
[313762238,1707685847246,-500.0,0.00020822,2]
[313762239,1707685847255,-500.0,0.00020822,2]
[313762240,1707685847264,-398.82419811,0.00020822,2]
[313762241,1707685847273,-500.0,0.00020822,2]
[313762242,1707685847282,-500.0,0.00020822,2]
[313762243,1707685847291,-500.0,0.00020822,2]
[313762244,1707685847300,-381.54872797,0.00020822,2]
[313762245,1707685847309,-500.0,0.00020822,2]
[313762246,1707685847318,-500.0,0.00020822,2]
[313762247,1707685847327,-500.0,0.00020822,2]
[313762248,1707685847336,-500.0,0.00020822,2]
[313762249,1707685847345,-500.0,0.00020822,2]
[313762250,1707685847354,-500.0,0.00020822,2]
[313762251,1707685847363,-500.0,0.00020822,2]
[313762252,1707685847372,-500.0,0.00020822,2]
[313762253,1707685847382,-500.0,0.00020822,2]
[313762254,1707685847391,-500.0,0.00020822,2]
[313762255,1707685847400,-500.0,0.00020822,2]
[313762256,1707685847410,-500.0,0.00020822,2]
[313762257,1707685847419,-500.0,0.00020822,2]
[313762258,1707685847428,-250.31953608,0.00020822,2]
[313762259,1707685847437,-500.0,0.00020822,2]
[313762260,1707685847446,-500.0,0.00020822,2]
[313762261,1707685847455,-500.0,0.00020822,2]
[313762262,1707685847464,-500.0,0.00020822,2]
[313762263,1707685847473,-500.0,0.00020822,2]
[313762264,1707685847482,-500.0,0.00020822,2]
[313762265,1707685847491,-500.0,0.00020822,2]
[313762266,1707685847500,-500.0,0.00020822,2]
[313762267,1707685847509,-500.0,0.00020822,2]
[313762268,1707685847518,-500.0,0.00020822,2]
[313762269,1707685847527,-500.0,0.00020822,2]
[313762270,1707685847535,-500.0,0.00020822,2]
[313762271,1707685847545,-500.0,0.00020822,2]
[313762272,1707685847554,-500.0,0.00020822,2]
[313762273,1707685847563,-500.0,0.00020822,2]
[313762274,1707685847571,-500.0,0.00020822,2]
[313762275,1707685847580,-500.0,0.00020822,2]
[313762276,1707685847589,-500.0,0.00020822,2]
[313762277,1707685847598,-500.0,0.00020822,2]
[313762278,1707685847607,-500.0,0.00020822,2]
[313762279,1707685847616,-500.0,0.00020822,2]
[313762280,1707685847625,-500.0,0.00020822,2]
[313762281,1707685847634,-500.0,0.00020822,2]
[313762282,1707685847643,-500.0,0.00020822,2]
[313762283,1707685847652,-500.0,0.00020822,2]
[313762284,1707685847663,-500.0,0.00020822,2]
[313762285,1707685847672,-500.0,0.00020822,2]
[313762286,1707685847681,-500.0,0.00020822,2]
[313762287,1707685847690,-500.0,0.00020822,2]
[313762288,1707685847699,-500.0,0.00020822,2]
[313762289,1707685847709,-500.0,0.00020822,2]
[313762290,1707685847718,-500.0,0.00020822,2]
[313762291,1707685847727,-500.0,0.00020822,2]
[313762292,1707685847736,-500.0,0.00020822,2]
[313762293,1707685847745,-500.0,0.00020822,2]
[313762294,1707685847755,-500.0,0.00020822,2]
[313762295,1707685847764,-500.0,0.00020822,2]
[313762296,1707685847774,-500.0,0.00020822,2]
[313762297,1707685847782,-500.0,0.00020822,2]
[313762298,1707685847792,-500.0,0.00020822,2]
[313762299,1707685847802,-405.19928969,0.00020822,2]
[313762300,1707685847811,-500.0,0.00020822,2]
[313762301,1707685847820,-500.0,0.00020822,2]
[313762302,1707685847829,-457.83678906,0.00020822,2]
[313762303,1707685847839,-500.0,0.00020822,2]
[313762304,1707685847850,-500.0,0.00020822,2]
[313762305,1707685847859,-500.0,0.00020822,2]
[313762306,1707685847869,-500.0,0.00020822,2]
[313762307,1707685847878,-500.0,0.00020822,2]
[313762308,1707685847887,-500.0,0.00020822,2]
[313762309,1707685847896,-500.0,0.00020822,2]
[313762310,1707685847905,-500.0,0.00020822,2]
[313762311,1707685847914,-500.0,0.00020822,2]
[313762312,1707685847923,-500.0,0.00020822,2]
[313762313,1707685847932,-500.0,0.00020822,2]
[313762314,1707685847941,-500.0,0.00020822,2]
[313762315,1707685847950,-500.0,0.00020822,2]
[313762316,1707685847959,-500.0,0.00020822,2]
[313762317,1707685847968,-500.0,0.00020822,2]
[313762318,1707685847977,-500.0,0.00020822,2]
[313762319,1707685847986,-500.0,0.00020822,2]
[313762320,1707685847994,-500.0,0.00020822,2]
[313762321,1707685848007,-500.0,0.00020822,2]
[313762322,1707685848016,-500.0,0.00020822,2]
[313762323,1707685848025,-500.0,0.00020822,2]
[313762324,1707685848033,-500.0,0.00020822,2]
[313762325,1707685848042,-500.0,0.00020822,2]
[313762326,1707685848053,-500.0,0.00020822,2]
[313762327,1707685848063,-500.0,0.00020822,2]
[313762328,1707685848072,-500.0,0.00020822,2]
[313762329,1707685848081,-500.0,0.00020822,2]
[313762330,1707685848090,-500.0,0.00020822,2]
[313762331,1707685848100,-500.0,0.00020822,2]
[313762332,1707685848109,-500.0,0.00020822,2]
[313762333,1707685848118,-500.0,0.00020822,2]
[313762334,1707685848127,-500.0,0.00020822,2]
[313762335,1707685848136,-500.0,0.00020822,2]
[313762336,1707685848145,-500.0,0.00020822,2]
[313762337,1707685848154,-500.0,0.00020822,2]
[313762338,1707685848164,-500.0,0.00020822,2]
[313762339,1707685848174,-500.0,0.00020822,2]
[313762340,1707685848183,-499.99999997,0.00020822,2]
[313762341,1707685848193,-500.0,0.00020822,2]
[313762342,1707685848202,-500.0,0.00020822,2]
[313762343,1707685848211,-500.0,0.00020822,2]
[313762344,1707685848221,-500.0,0.00020822,2]
[313762345,1707685848230,-2092.20651111,0.00020822,2]
[313762346,1707685848239,-300.0,0.00020822,2]
[313762347,1707685848248,-500.0,0.00020883,2]
[313762348,1707685848257,-581.17,0.00020883,2]
[313762349,1707685848267,-6051.74,0.00020883,2]
[313762350,1707685848276,-2143.43,0.00020883,2]
[313762351,1707685848284,-2247.75,0.00020883,2]
[313762352,1707685848294,-666.71,0.00020883,2]
[313762353,1707685848302,-500.0,0.00020884,2]
[313762354,1707685848311,-500.0,0.00020884,2]
[313762355,1707685848320,-500.0,0.00020884,2]
[313762356,1707685848329,-500.0,0.00020884,2]
[313762357,1707685848338,-500.0,0.00020884,2]
[313762358,1707685848347,-512.17,0.00020885,2]
[313762359,1707685848356,-577.33,0.00020885,2]
[313762360,1707685848366,-589.20598201,0.00021,2]
[313762361,1707685848375,-195.00241695,0.00021,2]
[313762362,1707685848384,-1000.0,0.00021,21]
[313762363,1707685848394,-16164.9821269,0.00021,2]
[313762364,1707685848403,-500.0,0.0002108,2]
[313762365,1707685848412,-2862.74,0.0002108,2]
[313762366,1707685848421,-2104.75,0.0002108,2]
[313762367,1707685848430,-500.0,0.0002108,2]
[313762368,1707685848439,-7626.57,0.00021084,2]
[313762369,1707685848448,-500.0,0.00021085,2]
[313762370,1707685848457,-500.0,0.00021085,2]
[313762371,1707685848465,-521.48,0.00021085,2]
[313762372,1707685848474,-500.0,0.00021085,2]
[313762373,1707685848483,-500.0,0.00021085,2]
[313762374,1707685848492,-1393.67,0.00021085,2]
[313762375,1707685848501,-500.0,0.00021086,2]
[313762376,1707685848510,-2094.17,0.00021086,2]
[313762377,1707685848519,-500.0,0.00021086,2]
[313762378,1707685848528,-500.0,0.00021086,2]
[313762379,1707685848537,-662.95,0.00021086,2]
[313762380,1707685848546,-500.0,0.00021086,2]
[313762381,1707685848555,-500.0,0.00021157,2]
[313762382,1707685848564,-581.17,0.00021157,2]
[313762383,1707685848573,-632.03551486,0.00021157,2]